fUSD/lending_fUSD_20240801
["ID","MTS","AMOUNT","RATE_DAILY","PERIOD"]
[333788510,1722500475348,500.0,0.00027,120]
[333788511,1722500475380,191.0,0.0001787,120]
[333788512,1722500475417,500.0,0.00027,120]
[333788513,1722500475446,2215.0,0.0001787,120]
[333788514,1722500475482,159.58,0.0001787,120]
[333788515,1722500475514,1044.0,0.0001787,120]
[333788516,1722500475547,500.0,0.00027,120]
[333788517,1722500475576,191.0,0.0001789,120]
[333788518,1722500475604,2215.0,0.0001789,120]
[333788519,1722500475632,500.0,0.00027,120]
[333788520,1722500475661,500.0,0.00027,120]
[333788521,1722500475713,191.0,0.0001788,120]
[333788522,1722500475744,500.0,0.00027,120]
[333788523,1722500475786,500.0,0.00027,120]
[333788524,1722500475815,2215.0,0.0001788,120]
[333788525,1722500475861,191.0,0.0001787,120]
[333788526,1722500475891,500.0,0.00027,120]
[333788527,1722500475982,500.0,0.00027,120]
[333788528,1722500476029,2215.0,0.0001787,120]
[333788529,1722500476280,500.0,0.00027,120]
[333788530,1722500476311,191.0,0.0001789,120]
[333788531,1722500476434,500.0,0.00027,120]
[333788532,1722500476553,2215.0,0.0001789,120]
[333788533,1722500476736,500.0,0.00027,120]
[333788534,1722500476797,191.0,0.0001788,120]
[333788535,1722500476910,500.0,0.00027,120]
[333788536,1722500477045,2215.0,0.0001788,120]
[333788537,1722500477188,642.91673968,0.00027,120]
[333788538,1722500477254,191.0,0.0001789,120]
[333788539,1722500477363,500.0,0.00027,120]
[333788540,1722500477566,2215.0,0.0001789,120]
[333788541,1722500477726,195.81,0.0001788,120]
[333788542,1722500477827,500.0,0.00027,120]
[333788543,1722500477993,1044.0,0.0001789,120]
[333788544,1722500478060,2222.76,0.0001788,120]
[333788545,1722500478247,500.0,0.00027,120]
[333788546,1722500478472,1044.0,0.0001788,120]
[333788547,1722500478682,500.0,0.00027,120]
[333788548,1722500478977,1044.0,0.0001787,120]
[333788549,1722500479130,500.0,0.00027,120]
[333788550,1722500479459,1044.0,0.0001789,120]
[333788551,1722500479594,500.0,0.00027,120]
[333788552,1722500479936,1044.0,0.0001788,120]
[333788553,1722500480024,500.0,0.00027,120]
[333788554,1722500480443,1044.0,0.0001789,120]
[333788555,1722500480474,500.0,0.00027,120]
[333788556,1722500480913,1048.03,0.0001788,120]
[333788557,1722500480943,500.0,0.00027,120]
[333788558,1722500481339,500.0,0.00027,120]
[333788559,1722500482430,500.0,0.00027,120]
[333788560,1722500482926,500.0,0.00027,120]
[333788561,1722500483468,500.0,0.00027,120]
[333788562,1722500483806,500.0,0.00027,120]
[333788563,1722500484216,500.0,0.00027,120]
[333788564,1722500484679,500.0,0.00027,120]
[333788565,1722500485197,500.0,0.00027,120]
[333788566,1722500486595,500.0,0.00027,120]
[333788567,1722500486632,500.0,0.00027,120]
[333788568,1722500486667,500.0,0.00027,120]
[333788569,1722500486955,500.0,0.00027,120]
[333788570,1722500487412,500.0,0.00027,120]
[333788571,1722500487844,500.0,0.00027,120]
[333788572,1722500488937,500.0,0.00027,120]
[333788573,1722500489429,578.78380579,0.00027,120]
[333788574,1722500510133,1005.0,0.00027,120]
[333788604,1722500634111,8394.41322722,0.00027,120]
[333788609,1722500708250,155.0,0.00026967,120]
[333788611,1722500713437,207.43,0.0001789,120]
[333788614,1722500713644,185.05,0.0001789,120]
[333788618,1722500714339,800.0,0.00026959,120]
[333788637,1722500723239,155.0,0.00026967,120]
[333788639,1722500741666,1770.85789063,0.00027,120]
[333788644,1722500770400,2000.0,0.00027,120]
[333788655,1722500832947,350.0,0.0001789,120]
[333788656,1722500833421,350.0,0.0001788,120]
[333788657,1722500833884,350.0,0.0001787,120]
[333788658,1722500834345,350.0,0.0001789,120]
[333788660,1722500834819,350.0,0.0001788,120]
[333788662,1722500835860,350.0,0.0001787,120]
[333788664,1722500836072,350.0,0.0001789,120]
[333788666,1722500836603,350.0,0.0001788,120]
[333788668,1722500837177,350.0,0.0001789,120]
[333788670,1722500837664,350.5,0.0001788,120]
[333788678,1722500888539,403.05847124,0.00010996,90]
[333788691,1722500926541,157.10598369,0.0002509,120]
[333788749,1722501032084,-803.46,8.219e-05,2]
[333788750,1722501032095,-172.94,9.683e-05,2]
[333788751,1722501032104,-7828.55,9.797e-05,2]
[333788752,1722501032115,-1000.0,9.841e-05,2]
[333788753,1722501032124,-250.0,9.86e-05,2]
[333788754,1722501032135,-300.0,9.872e-05,2]
[333788755,1722501032145,-157.36,9.875e-05,2]
[333788756,1722501032154,-474.37,0.000101,2]
[333788757,1722501032164,-400.0,0.000101,3]
[333788758,1722501032173,-714.89918688,0.000101,2]
[333788759,1722501032187,-335.16081312,0.000101,2]
[333788760,1722501032196,-900.0,0.000102,3]
[333788762,1722501032207,-1400.0,0.000103,3]
[333788764,1722501032218,-499.99,0.000104,2]
[333788766,1722501032228,-1900.0,0.000104,3]
[333788768,1722501032237,-803.46,0.00010472,2]
[333788770,1722501032247,-2400.0,0.000105,3]
[333788772,1722501032256,-400.0,0.000106,3]
[333788774,1722501032267,-400.0,0.000107,3]
[333788777,1722501032276,-400.0,0.000108,3]
[333788780,1722501032286,-420.0,0.0001086,2]
[333788783,1722501032295,-172.94,0.00010894,2]
[333788786,1722501032306,-1000.0,0.000109,2]
[333788789,1722501032315,-302.57293379,0.000109,2]
[333788792,1722501032325,-4948.0511,0.000109,2]
[333788794,1722501032334,-400.0,0.000109,3]
[333788797,1722501032344,-500.0,0.00010911,2]
[333788800,1722501032354,-500.0,0.00010912,2]
[333788802,1722501032365,-500.0,0.00010912,2]
[333788804,1722501032375,-200.0,0.00010959,2]
[333788806,1722501032384,-321.69137635,0.00010999,2]
[333788808,1722501032395,-1596.48259612,0.00010999,3]
[333788810,1722501032404,-6252.72240139,0.00011,2]
[333788813,1722501032418,-2983.94360785,0.00011,2]
[333788815,1722501032430,-4000.0,0.00011,2]
[333788818,1722501032453,-2448.9258045,0.00011,2]
[333788827,1722501037894,-298.41728368,0.00010999,2]
[333788829,1722501038142,-23.27409266,0.00010999,2]
[333788830,1722501038152,-20677.1410599,0.00011,2]
[333788831,1722501038161,-8349.71876953,0.00011,2]
[333788832,1722501038171,-400.85725149,0.00011,2]
[333788833,1722501038181,-24494.50814342,0.00011,2]
[333788834,1722501038193,-7447.99003987,0.00011,2]
[333788835,1722501038204,-5018.89119009,0.00011,2]
[333788864,1722501039902,-2162.32060296,0.00011,2]
[333788865,1722501039965,-3226.5,0.00011,2]
[333789013,1722501042961,-1546.95907038,0.000109,2]
[333789014,1722501042975,-953.91999999,0.000109,2]
[333789015,1722501042985,-1290.58,0.000109,2]
[333789016,1722501043020,-770.67953657,0.000109,2]
[333789017,1722501043033,-716.09355219,0.000109,2]
[333789018,1722501043146,-159838.25794087,0.000109,2]
[333789019,1722501043507,-250988.46364164,0.00011,2]
[333789020,1722501046149,-1881.26992386,0.00011,2]
[333789021,1722501046162,-508.09634944,0.00011,2]
[333789022,1722501046407,-8541.03724905,0.00011,2]
[333789023,1722501046419,-663.15118496,0.00011,2]
[333789048,1722501191501,500.0,0.00025389,120]
[333789049,1722501191860,500.0,0.00025889,120]
[333789050,1722501192239,507.460879,0.00026389,120]
[333789057,1722501195546,1000.0,0.00024932,120]
[333789062,1722501885974,991.64085254,7.219e-05,2]
[333789065,1722501964429,2563.7675372,7.219e-05,2]
[333789067,1722501991899,3068.13856627,7.219e-05,2]
[333789068,1722502006788,227.57356757,7.219e-05,2]
[333789069,1722502021728,227.57356757,7.219e-05,2]
[333789079,1722502079834,2563.7675372,7.219e-05,2]
[333789080,1722502094397,2563.7675372,7.219e-05,2]
[333789081,1722502109890,2527.01903954,7.219e-05,2]
[333789089,1722502153739,227.57356757,7.219e-05,2]
[333789116,1722502183735,227.57356757,7.219e-05,2]
[333789121,1722502207399,2563.7675372,7.219e-05,2]
[333789129,1722502232080,-788.7,8.219e-05,2]
[333789131,1722502232090,-167.99375819,8.75e-05,2]
[333789137,1722502232138,-285.76596148,8.75e-05,2]
[333789138,1722502232147,-1887.23411362,8.75e-05,2]
[333789139,1722502232157,-157.1337406,8.75e-05,2]
[333789140,1722502232251,-70.43982697,8.75e-05,2]
[333789141,1722502232261,-800.0,9.911e-05,2]
[333789142,1722502232271,-250.0,9.93e-05,2]
[333789143,1722502232281,-174.26,9.939e-05,2]
[333789144,1722502232291,-150.0,9.989e-05,2]
[333789145,1722502232301,-775.30017183,9.99e-05,2]
[333789146,1722502232314,-578.5596183,9.99e-05,2]
[333789147,1722502232328,-700.0,9.99e-05,2]
[333789148,1722502232340,-678.69156372,9.99e-05,2]
[333789149,1722502232352,-3001.32405636,9.99e-05,2]
[333789150,1722502232366,-642.3977412,9.99e-05,2]
[333789151,1722502232378,-8229.27684859,9.99e-05,2]
[333789152,1722502232391,-200.0,0.00010024,2]
[333789153,1722502232402,-167.74,0.00010061,2]
[333789154,1722502232411,-456.01,0.00010295,2]
[333789155,1722502232422,-574.18,0.00010295,2]
[333789157,1722502232433,-529.71,0.00010295,2]
[333789159,1722502232442,-788.7,0.00010473,2]
[333789161,1722502232452,-150.0,0.00010578,2]
[333789163,1722502232461,-5539.45,0.00010578,2]
[333789164,1722502232474,-299.99,0.00010598,2]
[333789165,1722502232484,-499.99,0.00010598,2]
[333789166,1722502232494,-3143.82,0.00010887,2]
[333789167,1722502232503,-3000.0,0.0001089,2]
[333789168,1722502232513,-2402.6589,0.000109,2]
[333789169,1722502232522,-281.1116,0.000109,2]
[333789170,1722502232532,-3175.6556,0.000109,2]
[333789171,1722502232541,-2531.5527,0.000109,2]
[333789172,1722502232550,-10000.0,0.000109,2]
[333789173,1722502232561,-242.7045,0.000109,2]
[333789174,1722502232571,-182.86320381,0.000109,2]
[333789175,1722502232581,-273.90957045,0.000109,2]
[333789176,1722502232591,-662.54,0.000109,2]
[333789177,1722502232601,-150.52377776,0.000109,2]
[333789178,1722502232611,-500.0,0.00010911,2]
[333789179,1722502232620,-500.0,0.00010912,2]
[333789180,1722502232630,-500.36,0.00010912,2]
[333789181,1722502232639,-500.0,0.00010912,2]
[333789182,1722502232648,-500.0,0.00010912,2]
[333789183,1722502232658,-500.0,0.00010959,2]
[333789184,1722502232667,-1000.0,0.00010959,2]
[333789185,1722502232677,-1000.0,0.00010959,2]
[333789186,1722502232687,-1000.0,0.00010959,2]
[333789187,1722502232696,-200.0,0.00010959,2]
[333789188,1722502232706,-250.0,0.00010959,2]
[333789189,1722502232715,-1031.32671217,0.00010999,3]
[333789190,1722502232724,-1031.32671218,0.00010999,3]
[333789191,1722502232734,-1031.32671218,0.00010999,3]
[333789192,1722502232744,-500.0,0.00010999,2]
[333789193,1722502232754,-350.56461774,0.00010999,2]
[333789194,1722502232764,-551.73339404,0.00010999,2]
[333789195,1722502232773,-40000.0,0.00011,2]
[333789196,1722502232783,-138553.07248595,0.00011,2]
[333789197,1722502232800,-1419.38375641,0.00011,2]
[333789207,1722502239534,-127511.39999999,0.00011,2]
[333789208,1722502239546,-3513.2,0.00011,2]
[333789209,1722502239557,-137530.0,0.00011,2]
[333789210,1722502239830,-3387.85851264,0.00010528,2]
[333789211,1722502239839,-222.4105086,0.00010997,2]
[333789212,1722502239848,-14969.76297873,0.00011,2]
[333789213,1722502239859,-6457.20000001,0.00011,2]
[333789214,1722502239872,-459.30440996,0.00011,2]
[333789215,1722502239883,-4015.86687,0.00011,2]
[333789216,1722502240223,-21459.21395668,0.00011,2]
[333789217,1722502240234,-3234.35035594,0.00011,2]
[333789218,1722502240280,-1401.67945,0.00011,2]
[333789219,1722502240292,-1679.44999998,0.00011,2]
[333789316,1722502243152,-421.401,0.00011,2]
[333789319,1722502243164,-261.98368089,0.00011,2]
[333789323,1722502243206,-19541.83985079,0.00011,2]
[333789324,1722502243263,-406.07,0.00011,2]
[333789325,1722502243377,-250988.46364164,0.00011,2]
[333789326,1722502243435,-437379.36426317,0.00011,2]
[333789327,1722502243488,-1789.29207492,0.00011,2]
[333789334,1722502246253,-637.7257582,8.75e-05,2]
[333789335,1722502246271,-309.99749104,8.75e-05,2]
[333789336,1722502246287,-929.88630953,0.00011,2]
[333789337,1722502246309,-3299.11777029,0.00011,2]
[333789338,1722502246331,-583.08000169,0.00011,2]
[333789339,1722502246347,-3115.62779448,0.00011,2]
[333789340,1722502246367,-1963.28462603,0.00011,2]
[333789341,1722502246388,-873.74712415,0.00011,2]
[333789342,1722502246411,-10391.97917367,0.00011,2]
[333789343,1722502246443,-2758.22972788,0.00011,2]
[333789344,1722502246461,-854.0,0.00011,2]
[333789345,1722502246479,-1280.55912122,0.00011,2]
[333789346,1722502246500,-1293.20318966,0.00011,2]
[333789347,1722502246519,-2139.91841431,0.00011,2]
[333789348,1722502246537,-618.3903605,0.00011,2]
[333789349,1722502246555,-1976.79,0.00011,2]
[333789350,1722502246585,-393.76878671,0.00011,2]
[333789351,1722502246602,-2457.75032891,0.00011,2]
[333789353,1722502246619,-239998.52818998,0.00011,2]
[333789355,1722502246637,-438.217861,0.00011,2]
[333789358,1722502246655,-4028.06691352,0.00011,2]
[333789359,1722502246672,-400.0,0.00011,2]
[333789372,1722502393811,1000.0,0.00024932,120]
[333789400,1722502560730,500.0,0.00027,120]
[333789401,1722502582606,500.0,0.00027,120]
[333789411,1722502670728,3438.48,0.00027,120]
[333789414,1722502900687,1000.0,0.00027,120]
[333789415,1722503016071,3033.0,0.00027,120]
[333789416,1722503138232,1000.0,0.00027,120]
[333789417,1722503169984,2100.0,0.00027,120]
[333789433,1722503432405,-785.61,8.219e-05,2]
[333789434,1722503432415,-250.0,9.772e-05,2]
[333789435,1722503432425,-167.75,9.81e-05,2]
[333789436,1722503432434,-200.0,9.813e-05,2]
[333789437,1722503432443,-446.11,9.813e-05,2]
[333789438,1722503432453,-300.0,9.912e-05,2]
[333789439,1722503432462,-300.0,9.912e-05,2]
[333789440,1722503432472,-8288.57,9.913e-05,2]
[333789441,1722503432481,-18901.92359556,9.979e-05,2]
[333789442,1722503432498,-326.80050338,9.979e-05,2]
[333789443,1722503432509,-1676.12452515,9.979e-05,2]
[333789444,1722503432575,-102.35137591,9.979e-05,2]
[333789445,1722503432585,-1700.0,0.0001,2]
[333789446,1722503432594,-157.36,0.00010113,2]
[333789447,1722503432603,-1007.07,0.00010113,2]
[333789448,1722503432613,-469.12,0.00010113,2]
[333789449,1722503432622,-1000.0,0.00010268,2]
[333789450,1722503432632,-499.99,0.00010268,2]
[333789451,1722503432641,-630.92,0.00010268,2]
[333789452,1722503432650,-356.08,0.000103,2]
[333789453,1722503432659,-355.84,0.00010378,2]
[333789454,1722503432669,-172.16,0.00010408,2]
[333789455,1722503432679,-299.99,0.00010451,2]
[333789456,1722503432688,-785.61,0.00010472,2]
[333789457,1722503432698,-150.0,0.00010599,2]
[333789458,1722503432708,-855.77,0.000106,2]
[333789459,1722503432717,-300.0,0.000106,2]
[333789460,1722503432726,-300.0,0.000106,2]
[333789461,1722503432736,-356.08,0.000106,2]
[333789462,1722503432745,-356.08,0.000106,2]
[333789463,1722503432755,-306.43,0.00010795,2]
[333789464,1722503432764,-150.99,0.0001089,2]
[333789465,1722503432773,-3000.0,0.0001089,2]
[333789466,1722503432782,-801.175,0.000109,2]
[333789467,1722503432792,-547.5883,0.000109,2]
[333789468,1722503432801,-3370.7638,0.000109,2]
[333789469,1722503432813,-689.96307781,0.000109,2]
[333789470,1722503432823,-64879.66844628,0.000109,2]
[333789471,1722503432834,-913.545,0.000109,2]
[333789472,1722503432846,-2157.70172192,0.000109,2]
[333789473,1722503432864,-588.74678369,0.000109,2]
[333789474,1722503432877,-2009.17611856,0.000109,2]
[333789475,1722503432892,-2032.85900448,0.000109,2]
[333789476,1722503432910,-10537.10640704,0.000109,2]
[333789477,1722503438326,-408.19529702,0.000109,2]
[333789478,1722503438338,-13634.70662101,0.000109,2]
[333789479,1722503438347,-493.42213316,0.000109,2]
[333789480,1722503438357,-420.0,0.00010903,2]
[333789481,1722503438366,-420.0,0.00010903,2]
[333789482,1722503438376,-500.0,0.00010912,2]
[333789483,1722503438386,-334.13,0.00010932,2]
[333789484,1722503438396,-1000.0,0.00010959,2]
[333789485,1722503438405,-200.0,0.00010959,2]
[333789486,1722503438415,-150.0,0.00010999,2]
[333789487,1722503438424,-409.88079105,0.00011,2]
[333789488,1722503438433,-5314.19920744,0.00011,2]
[333789489,1722503438446,-1082.94375529,0.00011,2]
[333789490,1722503438462,-2878.34064274,0.00011,2]
[333789491,1722503438474,-1425.33982887,0.00011,2]
[333789492,1722503438486,-998.52381322,0.00011,2]
[333789493,1722503438497,-1941.62650889,0.00011,2]
[333789494,1722503438509,-338.76000002,0.00011,2]
[333789495,1722503438520,-282.925,0.00011,2]
[333789496,1722503438532,-302.52178472,0.00011,2]
[333789497,1722503438543,-1886.88,0.00011,2]
[333789498,1722503438555,-20501.00796055,0.00011,2]
[333789499,1722503438566,-12212.22040255,0.00011,2]
[333789500,1722503438584,-343.26358931,0.00011,2]
[333789501,1722503438595,-1959.89033714,0.00011,2]
[333789502,1722503438607,-1527.99143988,0.00011,2]
[333789503,1722503438618,-4300.0,0.00011,2]
[333789504,1722503438629,-14736.84362093,0.00011,2]
[333789515,1722503440359,-384.644286,0.00011,2]
[333789516,1722503440371,-1477.783724,0.00011,2]
[333789517,1722503440417,-1485.65823706,0.00011,2]
[333789518,1722503440428,-1300.47673645,0.00011,2]
[333789519,1722503440478,-181701.18742287,0.00011,2]
[333789520,1722503440539,-325.41737,0.00011,2]
[333789521,1722503440551,-536.54832559,0.00011,2]
[333789522,1722503440562,-254.04499993,0.00011,2]
[333789523,1722503440575,-1048.582763,0.00011,2]
[333789524,1722503440601,-7307.23318351,0.00011,2]
[333789525,1722503440612,-707.12336694,0.00011,2]
[333789526,1722503440661,-527.39556223,0.00011,2]
[333789527,1722503440673,-359.38972543,0.00011,2]
[333789528,1722503440684,-2980.52193553,0.00011,2]
[333789529,1722503440696,-147513.1394155,0.00011,2]
[333789530,1722503440721,-485.2,0.00011,2]
[333789531,1722503440732,-21508.8837264,0.00011,2]
[333789653,1722503443397,-1361.5268,0.000109,2]
[333789654,1722503443406,-1001.59363647,0.00011,2]
[333789655,1722503443418,-3404.61595765,0.00011,2]
[333789656,1722503443429,-298.93134934,0.00011,2]
[333789657,1722503443455,-874703.61768079,0.00011,2]
[333789658,1722503443464,-238185.50265753,0.00011,2]
[333789659,1722503443475,-613.58900003,0.00011,2]
[333789660,1722503443520,-45166.71021242,0.00011,2]
[333789661,1722503443532,-500.0,0.00011,2]
[333789662,1722503443543,-1598.31428799,0.00011,2]
[333789663,1722503443572,-14061.047,0.00011,2]
[333789664,1722503443683,-1113.8701207,0.00011,2]
[333789665,1722503443696,-83390.77648931,0.00011,2]
[333789675,1722503446515,-3387.85851264,0.00011,2]
[333789676,1722503446687,-181595.73745004,0.00011,2]
[333789677,1722503446747,-1291.5,0.00011,2]
[333789680,1722503602684,1000.0,0.00024932,120]
[333789687,1722504494459,395.29358553,0.00027,120]
[333789735,1722504631604,-744.81,8.219e-05,2]
[333789736,1722504631614,-250.0,9.791e-05,2]
[333789737,1722504631623,-172.16,9.832e-05,2]
[333789738,1722504631634,-1000.0,9.859e-05,2]
[333789739,1722504631644,-804.58,9.874e-05,2]
[333789740,1722504631654,-157.20549695,9.987e-05,2]
[333789741,1722504631663,-167.88,0.00010103,2]
[333789742,1722504631672,-157.20549694,0.00010139,2]
[333789743,1722504631682,-482.88,0.00010241,2]
[333789744,1722504631691,-423.92,0.00010247,2]
[333789745,1722504631701,-157.20549694,0.00010291,2]
[333789746,1722504631710,-10.07159287,0.000103,2]
[333789747,1722504631726,-415.75840713,0.000103,2]
[333789748,1722504631735,-425.83,0.000103,2]
[333789749,1722504631748,-901.5665,0.00010372,2]
[333789750,1722504631758,-157.20549694,0.00010444,2]
[333789751,1722504631767,-744.81,0.00010462,2]
[333789752,1722504631777,-300.0,0.00010499,2]
[333789753,1722504631787,-425.83,0.000105,2]
[333789754,1722504631796,-356.08,0.000105,2]
[333789755,1722504631806,-300.0,0.000105,2]
[333789756,1722504631815,-356.08,0.000105,2]
[333789757,1722504631825,-425.83,0.000105,2]
[333789758,1722504631834,-779.76981013,0.00010523,2]
[333789759,1722504631845,-157.20549694,0.00010596,2]
[333789760,1722504631856,-425.83,0.000106,2]
[333789761,1722504631876,-356.08,0.000106,2]
[333789762,1722504631886,-418.12,0.000107,2]
[333789763,1722504631897,-157.20549694,0.00010748,2]
[333789764,1722504631907,-751.56,0.00010767,2]
[333789765,1722504631917,-2251.67749161,0.0001089,2]
[333789766,1722504631929,-748.32250839,0.0001089,2]
[333789767,1722504631939,-530.21131214,0.0001089,2]
[333789768,1722504631950,-157.03278882,0.00010899,2]
[333789769,1722504631960,-530.21131215,0.000109,2]
[333789770,1722504631969,-8589.91,0.000109,2]
[333789771,1722504631979,-9182.398,0.000109,2]
[333789772,1722504631988,-1000.0,0.000109,2]
[333789773,1722504631999,-157.20549694,0.000109,2]
[333789774,1722504632009,-1380.0024,0.000109,2]
[333789775,1722504632019,-157.03278882,0.000109,2]
[333789776,1722504632029,-500.0,0.00010912,2]
[333789777,1722504632039,-1000.0,0.00010959,2]
[333789778,1722504632048,-200.0,0.00010959,2]
[333789779,1722504632057,-250.0,0.00010959,2]
[333789780,1722504632067,-40316.67339276,0.0001099,2]
[333789781,1722504632079,-1500.0,0.0001099,2]
[333789786,1722504637610,-609.86056253,0.0001099,2]
[333789815,1722504638192,-638.76806,0.0001099,2]
[333789817,1722504638205,-89756.49401418,0.0001099,2]
[333789819,1722504638221,-14487.33026135,0.0001099,2]
[333789822,1722504638233,-507.30392181,0.0001099,2]
[333789826,1722504638263,-3280.38412441,0.0001099,2]
[333789828,1722504638274,-1097.72602781,0.0001099,2]
[333789830,1722504638285,-4841.50028613,0.0001099,2]
[333789954,1722504639618,-982.24203917,0.0001099,2]
[333789956,1722504639630,-70196.8605845,0.0001099,2]
[333789958,1722504639642,-293.84064571,0.0001099,2]
[333789961,1722504639654,-492.09818283,0.0001099,2]
[333789963,1722504639667,-662.68309162,0.0001099,2]
[333789973,1722504639758,-4502.2869326,0.0001099,2]
[333789976,1722504639771,-161120.2492717,0.0001099,2]
[333789978,1722504639782,-558.89350208,0.0001099,2]
[333789987,1722504639858,-8944.33992842,0.0001099,2]
[333790231,1722504642574,-339578.598582,0.0001099,2]
[333790233,1722504642584,-61866.0245043,0.0001099,3]
[333790235,1722504642595,-4095.58485922,0.0001099,3]
[333790245,1722504642675,-1715.41144929,0.0001099,3]
[333790254,1722504642755,-370.5881043,0.0001099,3]
[333790256,1722504642766,-1538.48868901,0.0001099,3]
[333790258,1722504642777,-23005.01037624,0.0001099,3]
[333790260,1722504642788,-32354.14794283,0.0001099,3]
[333790268,1722504642853,-12939.99999999,0.0001099,3]
[333790276,1722504645734,-1348.528929,0.0001099,3]
[333790277,1722504645824,-3370.66084998,0.0001099,3]
[333790278,1722504645836,-816.05718667,0.0001099,3]
[333790279,1722504645847,-1389.34217549,0.0001099,3]
[333790280,1722504645858,-2723.14089997,0.0001099,3]
[333790281,1722504645987,-2217.2340168,0.0001099,3]
[333790282,1722504646007,-3040.670937,0.0001099,3]
[333790283,1722504646104,-674.8265407,0.0001099,3]
[333790286,1722504646115,-298807.62680346,0.0001099,3]
[333790288,1722504646125,-1629.06500109,0.00010999,3]
[333790289,1722504646134,-135986.64237065,0.00011,2]
[333790300,1722504794189,1000.0,0.00024932,120]
[333790328,1722505831799,-707.87,8.346e-05,2]
[333790330,1722505831809,-258.85,9.888e-05,2]
[333790332,1722505831819,-250.0,0.00010105,2]
[333790334,1722505831828,-167.78,0.00010153,2]
[333790336,1722505831838,-162.42,0.00010298,2]
[333790338,1722505831848,-1000.0,0.00010353,2]
[333790340,1722505831857,-264.32512979,0.00010519,2]
[333790342,1722505831867,-707.87,0.0001061,2]
[333790344,1722505831876,-300.0,0.00010899,2]
[333790346,1722505831886,-301.95640594,0.000109,2]
[333790348,1722505831898,-9698.04359406,0.000109,2]
[333790350,1722505831908,-301.50295456,0.000109,2]
[333790352,1722505831918,-300.2980198,0.000109,2]
[333790354,1722505831927,-500.0,0.00010912,2]
[333790356,1722505831937,-428.22,0.00010912,2]
[333790358,1722505831946,-1000.0,0.00010959,2]
[333790360,1722505831955,-200.0,0.00010959,2]
[333790362,1722505831965,-250.0,0.00010959,2]
[333790364,1722505831974,-732.19,0.00010959,2]
[333790366,1722505831983,-157.34,0.0001099,2]
[333790368,1722505831992,-499.99,0.00010997,2]
[333790369,1722505832002,-272.584251,0.00010999,2]
[333790370,1722505832010,-10118.29038401,0.00011,2]
[333790371,1722505832022,-1421.18809713,0.00011,2]
[333790372,1722505832033,-750.26546194,0.00011,2]
[333790373,1722505832044,-1266.60175907,0.00011,2]
[333790375,1722505832056,-12789.23652317,0.00011,2]
[333790377,1722505832067,-6594.65836655,0.00011,2]
[333790379,1722505832078,-10078.06183288,0.00011,2]
[333790381,1722505832089,-1133.16129937,0.00011,2]
[333790383,1722505832100,-2366.82428039,0.00011,2]
[333790384,1722505832111,-384024.70921184,0.00011,2]
[333790386,1722505832123,-296.5600783,0.00011,2]
[333790388,1722505832133,-11144.37585885,0.00011,2]
[333790390,1722505832145,-14582.78132822,0.00011,2]
[333790393,1722505832156,-104124.83769132,0.00011,2]
[333790395,1722505832187,-4384.90963218,0.00011,2]
[333790397,1722505832202,-96978.0,0.00011,2]
[333790398,1722505832214,-1332.42468244,0.00011,2]
[333790399,1722505832227,-501.4792984,0.00011,2]
[333790400,1722505832238,-1421.59079375,0.00011,2]
[333790401,1722505832249,-706.07482364,0.00011,2]